[Event "Live Chess"]
[Site "Chess.com"]
[Date "2023.05.21"]
[Round "-"]
[White "Conradical12"]
[Black "xx_blindpuffin_xx"]
[Result "0-1"]
[WhiteElo "1626"]
[BlackElo "2187"]
[TimeControl "300"]
[EndTime "19:56:27 PDT"]
[Termination "xx_blindpuffin_xx won by resignation"]

1. e4 {[%clk 0:04:56.4]} 1... e6 {[%clk 0:04:57.2]} 2. d4 {[%clk 0:04:53.4]}
2... d5 {[%clk 0:04:55.8]} 3. Nd2 {[%clk 0:04:39]} 3... dxe4 {[%clk 0:04:53]} 4.
Nxe4 {[%clk 0:04:36.9]} 4... Bd7 {[%clk 0:04:52.6]} 5. Nf3 {[%clk 0:04:23.4]}
5... Bc6 {[%clk 0:04:47.5]} 6. Bd3 {[%clk 0:04:21.4]} 6... Nd7 {[%clk
0:04:44.5]} 7. O-O {[%clk 0:04:20]} 7... Ngf6 {[%clk 0:04:31]} 8. Bg5 {[%clk
0:04:12.5]} 8... Be7 {[%clk 0:04:29.3]} 9. Nxf6+ {[%clk 0:03:52.9]} 9... Bxf6
{[%clk 0:04:27.1]} 10. Be3 {[%clk 0:03:44.5]} 10... O-O {[%clk 0:04:15.2]} 11.
c4 {[%clk 0:03:07.8]} 11... b6 {[%clk 0:04:09.9]} 12. b4 {[%clk 0:03:00.3]}
12... a5 {[%clk 0:04:05.7]} 13. b5 {[%clk 0:02:58.1]} 13... Bb7 {[%clk
0:04:02.7]} 14. Qe2 {[%clk 0:02:44.8]} 14... e5 {[%clk 0:03:53.5]} 15. d5 {[%clk
0:02:42.6]} 15... g6 {[%clk 0:03:50.4]} 16. Bh6 {[%clk 0:02:31.9]} 16... Re8
{[%clk 0:03:47.4]} 17. Qc2 {[%clk 0:02:20.3]} 17... Bh8 {[%clk 0:03:44.9]} 18.
g3 {[%clk 0:02:16.1]} 18... f5 {[%clk 0:03:42.9]} 19. Bxf5 {[%clk 0:02:07.7]}
19... gxf5 {[%clk 0:03:40.6]} 20. Qxf5 {[%clk 0:02:07.2]} 20... Nf8 {[%clk
0:03:01.6]} 21. Ng5 {[%clk 0:01:58.6]} 21... Qf6 {[%clk 0:02:44.7]} 22. Qxf6
{[%clk 0:01:43.4]} 22... Bxf6 {[%clk 0:02:42.5]} 23. Bxf8 {[%clk 0:01:41.9]}
23... Rxf8 {[%clk 0:02:38.9]} 24. Ne4 {[%clk 0:01:39.9]} 24... Bg7 {[%clk
0:02:37.1]} 25. Ng5 {[%clk 0:01:36.8]} 25... Bc8 {[%clk 0:02:35.5]} 26. Rae1
{[%clk 0:01:26.5]} 26... Bf6 {[%clk 0:02:29.6]} 27. Ne4 {[%clk 0:01:24.1]} 27...
Bh3 {[%clk 0:02:25.6]} 28. Nxf6+ {[%clk 0:01:19.3]} 28... Rxf6 {[%clk
0:02:25.5]} 0-1

[Event "Live Chess"]
[Site "Chess.com"]
[Date "2023.05.21"]
[Round "-"]
[White "Long1968"]
[Black "GEMdzq"]
[Result "0-1"]
[WhiteElo "1052"]
[BlackElo "2280"]
[TimeControl "300"]
[EndTime "19:56:47 PDT"]
[Termination "GEMdzq won on time"]

1. e4 {[%clk 0:04:57.5]} 1... d6 {[%clk 0:04:59.1]} 2. d4 {[%clk 0:04:56.1]}
2... Nf6 {[%clk 0:04:59]} 3. Nc3 {[%clk 0:04:52.6]} 3... g6 {[%clk 0:04:58.5]}
4. Bc4 {[%clk 0:04:49]} 4... Bg7 {[%clk 0:04:57.8]} 5. Qe2 {[%clk 0:04:44.1]}
5... Nfd7 {[%clk 0:04:55.8]} 6. Bg5 {[%clk 0:04:37.1]} 6... h6 {[%clk
0:04:51.5]} 7. Bh4 {[%clk 0:04:04.7]} 7... Bxd4 {[%clk 0:04:47.2]} 8. Bxf7+
{[%clk 0:03:46.9]} 8... Kxf7 {[%clk 0:04:43.6]} 9. Qc4+ {[%clk 0:03:43.7]} 9...
Kg7 {[%clk 0:04:37.3]} 10. Qxd4+ {[%clk 0:03:41]} 10... e5 {[%clk 0:04:31.2]}
11. Bxd8 {[%clk 0:03:19]} 11... exd4 {[%clk 0:04:29.6]} 12. Nb5 {[%clk
0:03:05.6]} 12... Rxd8 {[%clk 0:04:26.8]} 13. Nxc7 {[%clk 0:03:02.1]} 13... Nb6
{[%clk 0:04:22.2]} 14. Nxa8 {[%clk 0:02:59.5]} 14... Nxa8 {[%clk 0:04:21.2]} 15.
O-O-O {[%clk 0:02:54.5]} 15... Nc6 {[%clk 0:04:19.9]} 16. Nf3 {[%clk 0:02:50.5]}
16... Bg4 {[%clk 0:04:18.8]} 17. Rd3 {[%clk 0:02:43.7]} 17... Bxf3 {[%clk
0:04:17]} 18. Rxf3 {[%clk 0:02:38.6]} 18... Nc7 {[%clk 0:04:16.4]} 19. Rd1
{[%clk 0:02:31.8]} 19... Ne6 {[%clk 0:04:14.5]} 20. Rb3 {[%clk 0:02:16.5]} 20...
Nc5 {[%clk 0:04:13.3]} 21. Rb5 {[%clk 0:01:57.2]} 21... a6 {[%clk 0:04:04.9]}
22. Rb6 {[%clk 0:01:50.9]} 22... Rd7 {[%clk 0:04:04]} 23. b4 {[%clk 0:01:34.7]}
23... Nxe4 {[%clk 0:04:01.5]} 24. Rf1 {[%clk 0:01:01.7]} 24... Ne5 {[%clk
0:03:51.4]} 25. f3 {[%clk 0:00:37.8]} 25... Nc3 {[%clk 0:03:45.1]} 26. b5 {[%clk
0:00:09]} 26... axb5 {[%clk 0:03:34.8]} 0-1

[Event "Live Chess"]
[Site "Chess.com"]
[Date "2023.05.21"]
[Round "-"]
[White "therealab0ne"]
[Black "garyjc"]
[Result "1-0"]
[WhiteElo "731"]
[BlackElo "1034"]
[TimeControl "300"]
[EndTime "19:57:05 PDT"]
[Termination "therealab0ne won by checkmate"]

1. e4 {[%clk 0:04:58.2]} 1... c5 {[%clk 0:04:58.8]} 2. Nc3 {[%clk 0:04:56.8]}
2... d6 {[%clk 0:04:57]} 3. Nge2 {[%clk 0:04:56.2]} 3... g6 {[%clk 0:04:54.6]}
4. g3 {[%clk 0:04:55.6]} 4... Bg7 {[%clk 0:04:49.1]} 5. b3 {[%clk 0:04:52.9]}
5... Nf6 {[%clk 0:04:46.1]} 6. Bb2 {[%clk 0:04:52.2]} 6... O-O {[%clk
0:04:44.2]} 7. d3 {[%clk 0:04:50.8]} 7... Nc6 {[%clk 0:04:39]} 8. Qd2 {[%clk
0:04:48.7]} 8... Nd4 {[%clk 0:04:30.3]} 9. O-O-O {[%clk 0:04:44]} 9... Ng4
{[%clk 0:04:18.2]} 10. Nxd4 {[%clk 0:04:22.8]} 10... cxd4 {[%clk 0:04:13.9]} 11.
Ne2 {[%clk 0:04:21.7]} 11... Nxf2 {[%clk 0:04:10.8]} 12. Bg2 {[%clk 0:04:07.2]}
12... Nxh1 {[%clk 0:04:01.7]} 13. Bxh1 {[%clk 0:04:06.2]} 13... Be6 {[%clk
0:03:52.5]} 14. Nxd4 {[%clk 0:04:01.6]} 14... Rc8 {[%clk 0:03:41.6]} 15. Nxe6
{[%clk 0:03:57.4]} 15... fxe6 {[%clk 0:03:40.6]} 16. Bxg7 {[%clk 0:03:55.8]}
16... Kxg7 {[%clk 0:03:38.9]} 17. c4 {[%clk 0:03:40.9]} 17... Qb6 {[%clk
0:03:27.8]} 18. Qc3+ {[%clk 0:03:37]} 18... Kg8 {[%clk 0:03:25.1]} 19. Bg2
{[%clk 0:03:24.5]} 19... Rf2 {[%clk 0:03:15.1]} 20. Bh3 {[%clk 0:03:11.8]} 20...
Rxh2 {[%clk 0:03:03.3]} 21. Bxe6+ {[%clk 0:03:10.4]} 21... Kf8 {[%clk
0:02:56.9]} 22. Rf1+ {[%clk 0:03:02.5]} 22... Ke8 {[%clk 0:02:54.7]} 23. Qh8#
{[%clk 0:02:47.1]} 1-0

[Event "Live Chess"]
[Site "Chess.com"]
[Date "2023.05.21"]
[Round "-"]
[White "LiamBellwood"]
[Black "Tushinskiy"]
[Result "0-1"]
[WhiteElo "2009"]
[BlackElo "2192"]
[TimeControl "300"]
[EndTime "19:57:27 PDT"]
[Termination "Tushinskiy won on time"]

1. d3 {[%clk 0:04:58.8]} 1... d5 {[%clk 0:04:58.8]} 2. e4 {[%clk 0:04:58.1]}
2... c6 {[%clk 0:04:58.7]} 3. Nd2 {[%clk 0:04:52.8]} 3... e5 {[%clk 0:04:57.2]}
4. g3 {[%clk 0:04:51.9]} 4... Bd6 {[%clk 0:04:55.7]} 5. Bg2 {[%clk 0:04:51.6]}
5... Ne7 {[%clk 0:04:55.1]} 6. Ne2 {[%clk 0:04:50.5]} 6... Bg4 {[%clk
0:04:54.1]} 7. f3 {[%clk 0:04:49.3]} 7... Bh5 {[%clk 0:04:53.1]} 8. O-O {[%clk
0:04:48.5]} 8... Nd7 {[%clk 0:04:51.2]} 9. f4 {[%clk 0:04:44.8]} 9... Qc7 {[%clk
0:04:46.2]} 10. Nf3 {[%clk 0:04:35.7]} 10... dxe4 {[%clk 0:04:41.3]} 11. dxe4
{[%clk 0:04:27.5]} 11... O-O-O {[%clk 0:04:40.7]} 12. h3 {[%clk 0:04:16.3]}
12... f6 {[%clk 0:04:36.8]} 13. Be3 {[%clk 0:04:08.8]} 13... Nc5 {[%clk
0:04:34.7]} 14. Nd2 {[%clk 0:03:48]} 14... exf4 {[%clk 0:04:25.3]} 15. gxf4
{[%clk 0:03:40.8]} 15... Ne6 {[%clk 0:04:23.5]} 16. f5 {[%clk 0:03:33.7]} 16...
Ng5 {[%clk 0:04:20.3]} 17. Qe1 {[%clk 0:03:29.1]} 17... Rhe8 {[%clk 0:04:13.1]}
18. Nf4 {[%clk 0:03:18.7]} 18... Bf7 {[%clk 0:04:04.6]} 19. h4 {[%clk
0:03:16.3]} 19... Nxf5 {[%clk 0:03:55.1]} 20. hxg5 {[%clk 0:03:02.8]} 20... Nxe3
{[%clk 0:03:52]} 21. Qxe3 {[%clk 0:03:02.5]} 21... fxg5 {[%clk 0:03:47.5]} 22.
Nd3 {[%clk 0:02:36.8]} 22... h6 {[%clk 0:03:39.7]} 23. Qxa7 {[%clk 0:02:32.3]}
23... Be6 {[%clk 0:03:37.3]} 24. Rae1 {[%clk 0:02:12.8]} 24... Qe7 {[%clk
0:03:35.5]} 25. Qa8+ {[%clk 0:02:09.2]} 25... Bb8 {[%clk 0:03:34.5]} 26. e5
{[%clk 0:02:01.8]} 26... Rf8 {[%clk 0:03:27.8]} 27. Ne4 {[%clk 0:01:59.3]} 27...
Rfe8 {[%clk 0:02:49.9]} 28. Ndc5 {[%clk 0:01:47.9]} 28... Qc7 {[%clk 0:02:34.2]}
29. Nd6+ {[%clk 0:01:37.6]} 29... Rxd6 {[%clk 0:02:32.7]} 30. exd6 {[%clk
0:01:37.5]} 30... Qb6 {[%clk 0:02:32.1]} 31. d7+ {[%clk 0:00:39.4]} 31... Bxd7
{[%clk 0:02:25.3]} 32. Rxe8+ {[%clk 0:00:39.3]} 32... Bxe8 {[%clk 0:02:24.5]}
33. Bh3+ {[%clk 0:00:29.5]} 33... Kc7 {[%clk 0:02:16.7]} 34. Qa3 {[%clk
0:00:19.5]} 34... Ba7 {[%clk 0:02:08.3]} 35. b4 {[%clk 0:00:19.1]} 35... Kb8
{[%clk 0:01:49.1]} 36. Kg2 {[%clk 0:00:16.1]} 36... Qd8 {[%clk 0:01:47.8]} 37.
Qd3 {[%clk 0:00:14.7]} 37... Qe7 {[%clk 0:01:42.8]} 38. Qg3+ {[%clk 0:00:12.1]}
38... Ka8 {[%clk 0:01:40.1]} 39. Re1 {[%clk 0:00:11.3]} 39... Qd8 {[%clk
0:01:37.5]} 40. Ne6 {[%clk 0:00:09.3]} 40... Qd5+ {[%clk 0:01:35.4]} 41. Qf3
{[%clk 0:00:08.3]} 41... Qxf3+ {[%clk 0:01:27.7]} 42. Kxf3 {[%clk 0:00:08.2]}
42... Bf7 {[%clk 0:01:23.5]} 43. Nc7+ {[%clk 0:00:07.4]} 43... Kb8 {[%clk
0:01:22.5]} 44. Ne6 {[%clk 0:00:06.1]} 44... Bb6 {[%clk 0:01:17.2]} 45. Nxg7
{[%clk 0:00:05.1]} 45... Bxa2 {[%clk 0:01:14.5]} 46. Re7 {[%clk 0:00:04.7]}
46... Bd5+ {[%clk 0:01:13]} 47. Ke2 {[%clk 0:00:02.7]} 47... Bd4 {[%clk
0:01:08]} 48. Ne8 {[%clk 0:00:01.9]} 48... h5 {[%clk 0:01:02.5]} 49. Nd6 {[%clk
0:00:01.4]} 49... g4 {[%clk 0:01:01]} 50. Rxb7+ {[%clk 0:00:00.5]} 50... Ka8
{[%clk 0:01:00.2]} 0-1

[Event "Live Chess"]
[Site "Chess.com"]
[Date "2023.05.21"]
[Round "-"]
[White "ramses-IIG"]
[Black "LutherSullivan"]
[Result "0-1"]
[WhiteElo "870"]
[BlackElo "2189"]
[TimeControl "300"]
[EndTime "19:57:47 PDT"]
[Termination "LutherSullivan won by resignation"]

1. e4 {[%clk 0:04:56.7]} 1... c5 {[%clk 0:04:59.5]} 2. Nf3 {[%clk 0:04:56.5]}
2... Nc6 {[%clk 0:04:58.9]} 3. Bc4 {[%clk 0:04:55.1]} 3... e6 {[%clk 0:04:55]}
4. d4 {[%clk 0:04:53.3]} 4... d5 {[%clk 0:04:52.6]} 5. exd5 {[%clk 0:04:51]}
5... exd5 {[%clk 0:04:50.8]} 6. Bb3 {[%clk 0:04:47.4]} 6... c4 {[%clk
0:04:45.2]} 7. Ba4 {[%clk 0:04:44.2]} 7... Bd6 {[%clk 0:04:39.1]} 8. Bxc6+
{[%clk 0:04:42.3]} 8... bxc6 {[%clk 0:04:37.7]} 9. c3 {[%clk 0:04:40]} 9... Ne7
{[%clk 0:04:35.2]} 10. Qd2 {[%clk 0:04:32.2]} 10... O-O {[%clk 0:04:33.3]} 11.
Qg5 {[%clk 0:04:25.6]} 11... f6 {[%clk 0:04:28.9]} 12. Qh4 {[%clk 0:04:15.6]}
12... Ng6 {[%clk 0:04:25.9]} 13. Qh5 {[%clk 0:04:06.3]} 13... Re8+ {[%clk
0:04:21.9]} 14. Be3 {[%clk 0:03:57.5]} 14... Nf4 {[%clk 0:04:13.3]} 0-1

[Event "Live Chess"]
[Site "Chess.com"]
[Date "2023.05.21"]
[Round "-"]
[White "OceanFloater"]
[Black "manthanit"]
[Result "0-1"]
[WhiteElo "1019"]
[BlackElo "1067"]
[TimeControl "300"]
[EndTime "19:58:27 PDT"]
[Termination "manthanit won by checkmate"]

1. e4 {[%clk 0:04:57.9]} 1... e6 {[%clk 0:04:58.2]} 2. Nf3 {[%clk 0:04:56.1]}
2... d5 {[%clk 0:04:57.7]} 3. exd5 {[%clk 0:04:54.6]} 3... exd5 {[%clk
0:04:56.9]} 4. d4 {[%clk 0:04:54.3]} 4... h6 {[%clk 0:04:54.2]} 5. Nc3 {[%clk
0:04:53.8]} 5... Nf6 {[%clk 0:04:53.6]} 6. Be2 {[%clk 0:04:46.3]} 6... a6 {[%clk
0:04:52.5]} 7. O-O {[%clk 0:04:45.4]} 7... Be7 {[%clk 0:04:52]} 8. Ne5 {[%clk
0:04:30.7]} 8... O-O {[%clk 0:04:48.8]} 9. Bxh6 {[%clk 0:04:24.5]} 9... gxh6
{[%clk 0:04:34.3]} 10. Qd2 {[%clk 0:04:20.2]} 10... Nh7 {[%clk 0:04:30.5]} 11.
Bd3 {[%clk 0:04:10.1]} 11... Bg5 {[%clk 0:04:26.1]} 12. f4 {[%clk 0:04:06.2]}
12... f6 {[%clk 0:04:19.1]} 13. Bxh7+ {[%clk 0:04:01.5]} 13... Kxh7 {[%clk
0:04:17.9]} 14. Qd3+ {[%clk 0:04:00.4]} 14... Kh8 {[%clk 0:04:13.6]} 15. Ng6+
{[%clk 0:03:59]} 15... Kg7 {[%clk 0:04:11.2]} 16. Nxf8 {[%clk 0:03:58]} 16...
Kxf8 {[%clk 0:04:10.8]} 17. fxg5 {[%clk 0:03:57.1]} 17... hxg5 {[%clk
0:04:09.3]} 18. Nxd5 {[%clk 0:03:51.9]} 18... Qxd5 {[%clk 0:04:05.1]} 19. Rxf6+
{[%clk 0:03:50.4]} 19... Ke7 {[%clk 0:03:57.6]} 20. Rh6 {[%clk 0:03:34]} 20...
Bf5 {[%clk 0:03:38.4]} 21. Re1+ {[%clk 0:03:32.3]} 21... Kf7 {[%clk 0:03:36.7]}
22. Rh7+ {[%clk 0:03:24.8]} 22... Bxh7 {[%clk 0:03:33]} 23. Qxh7+ {[%clk
0:03:22]} 23... Kf6 {[%clk 0:03:24.3]} 24. Qh6+ {[%clk 0:03:17.3]} 24... Kf7
{[%clk 0:03:21.6]} 25. Rf1+ {[%clk 0:03:13.1]} 25... Ke7 {[%clk 0:03:17.7]} 26.
Qg7+ {[%clk 0:03:10]} 26... Kd6 {[%clk 0:03:05.1]} 27. Qf8+ {[%clk 0:03:05.9]}
27... Kc6 {[%clk 0:02:55.7]} 28. Qe8+ {[%clk 0:02:53.8]} 28... Kb6 {[%clk
0:02:53.9]} 29. Rf6+ {[%clk 0:02:50]} 29... c6 {[%clk 0:02:48.5]} 30. Qe3 {[%clk
0:02:39.2]} 30... Nd7 {[%clk 0:02:40.8]} 31. Rg6 {[%clk 0:02:36.1]} 31... Rf8
{[%clk 0:02:34.5]} 32. c4 {[%clk 0:02:18.9]} 32... Qf5 {[%clk 0:02:32.3]} 33.
d5+ {[%clk 0:02:16.7]} 33... Kc7 {[%clk 0:02:31.3]} 34. d6+ {[%clk 0:02:12.9]}
34... Kc8 {[%clk 0:02:27.1]} 35. h3 {[%clk 0:01:44.4]} 35... Qxg6 {[%clk
0:02:21.5]} 36. Qe7 {[%clk 0:01:40.4]} 36... Qb1+ {[%clk 0:02:14.4]} 37. Kh2
{[%clk 0:01:37.5]} 37... Qxb2 {[%clk 0:02:11.1]} 38. Qxg5 {[%clk 0:01:34.1]}
38... Qxa2 {[%clk 0:02:09.8]} 39. Qg4 {[%clk 0:01:22.9]} 39... Qb2 {[%clk
0:02:07.8]} 40. h4 {[%clk 0:01:09.2]} 40... Qe5+ {[%clk 0:02:06.3]} 41. Kh3
{[%clk 0:01:01.8]} 41... Qxd6 {[%clk 0:01:53.2]} 42. g3 {[%clk 0:00:58.1]} 42...
Kc7 {[%clk 0:01:42.5]} 43. Qg5 {[%clk 0:00:53.2]} 43... Qe6+ {[%clk 0:01:39.5]}
44. Kh2 {[%clk 0:00:47.3]} 44... Rf2+ {[%clk 0:01:36.2]} 45. Kg1 {[%clk
0:00:42.2]} 45... Qe1# {[%clk 0:01:34.2]} 0-1

[Event "Live Chess"]
[Site "Chess.com"]
[Date "2023.05.21"]
[Round "-"]
[White "ClassyChameleon"]
[Black "Olisingapore"]
[Result "0-1"]
[WhiteElo "1077"]
[BlackElo "1789"]
[TimeControl "300"]
[EndTime "19:58:49 PDT"]
[Termination "Olisingapore won by checkmate"]

1. e4 {[%clk 0:04:59.6]} 1... c5 {[%clk 0:04:57.3]} 2. Nf3 {[%clk 0:04:57.9]}
2... d6 {[%clk 0:04:56.5]} 3. Nc3 {[%clk 0:04:55.9]} 3... Nf6 {[%clk 0:04:55.4]}
4. Bc4 {[%clk 0:04:55.1]} 4... Nc6 {[%clk 0:04:53.9]} 5. d3 {[%clk 0:04:54.7]}
5... g6 {[%clk 0:04:53.3]} 6. O-O {[%clk 0:04:52.6]} 6... Bg7 {[%clk 0:04:52.7]}
7. Bg5 {[%clk 0:04:51.1]} 7... h6 {[%clk 0:04:50.9]} 8. Bxf6 {[%clk 0:04:50.2]}
8... Bxf6 {[%clk 0:04:49.4]} 9. Nd5 {[%clk 0:04:47]} 9... Bg7 {[%clk 0:04:47.5]}
10. Bb5 {[%clk 0:04:40.5]} 10... e6 {[%clk 0:04:44.2]} 11. Bxc6+ {[%clk
0:04:39.3]} 11... bxc6 {[%clk 0:04:42.4]} 12. Nf4 {[%clk 0:04:38]} 12... e5
{[%clk 0:04:39.8]} 13. Ne2 {[%clk 0:04:33.9]} 13... O-O {[%clk 0:04:35.3]} 14.
c4 {[%clk 0:04:31.8]} 14... Bg4 {[%clk 0:04:30.4]} 15. Nc3 {[%clk 0:04:28.1]}
15... f5 {[%clk 0:04:03.3]} 16. exf5 {[%clk 0:04:23]} 16... Rxf5 {[%clk
0:03:59.9]} 17. h3 {[%clk 0:04:21.2]} 17... Bxf3 {[%clk 0:03:58.1]} 18. gxf3
{[%clk 0:04:20.5]} 18... Qf6 {[%clk 0:03:57]} 19. Kh2 {[%clk 0:04:12.2]} 19...
Rxf3 {[%clk 0:03:53.8]} 20. Rg1 {[%clk 0:04:11.2]} 20... Qf4+ {[%clk 0:03:51.8]}
21. Kh1 {[%clk 0:04:06.5]} 21... Rxh3+ {[%clk 0:03:42.8]} 22. Kg2 {[%clk
0:04:02.9]} 22... Rh2+ {[%clk 0:03:39.1]} 23. Kf1 {[%clk 0:03:56.6]} 23... Qxf2#
{[%clk 0:03:38.3]} 0-1

[Event "Live Chess"]
[Site "Chess.com"]
[Date "2023.05.21"]
[Round "-"]
[White "garyjc"]
[Black "Biranidun"]
[Result "0-1"]
[WhiteElo "1034"]
[BlackElo "2506"]
[TimeControl "300"]
[EndTime "19:59:04 PDT"]
[Termination "Biranidun won by resignation"]

1. e4 {[%clk 0:04:56]} 1... c5 {[%clk 0:04:59.1]} 2. Nc3 {[%clk 0:04:53.7]} 2...
g6 {[%clk 0:04:57.9]} 3. f4 {[%clk 0:04:52.5]} 3... Bg7 {[%clk 0:04:57.1]} 4.
Nf3 {[%clk 0:04:51.5]} 4... Nc6 {[%clk 0:04:56.6]} 5. Bb5 {[%clk 0:04:49.8]}
5... Nd4 {[%clk 0:04:55.6]} 6. Nxd4 {[%clk 0:04:47.1]} 6... cxd4 {[%clk
0:04:55.5]} 7. Ne2 {[%clk 0:04:37.4]} 7... Qb6 {[%clk 0:04:53.9]} 8. a4 {[%clk
0:04:34.7]} 8... Nf6 {[%clk 0:04:51.8]} 9. d3 {[%clk 0:04:30.9]} 9... O-O {[%clk
0:04:49.3]} 10. O-O {[%clk 0:04:21.8]} 10... d5 {[%clk 0:04:44.4]} 11. e5 {[%clk
0:04:18.1]} 11... Ng4 {[%clk 0:04:42.9]} 12. Qe1 {[%clk 0:04:03.7]} 12... a6
{[%clk 0:04:40.9]} 13. a5 {[%clk 0:03:58.6]} 13... Qxb5 {[%clk 0:04:38.1]} 0-1

[Event "Live Chess"]
[Site "Chess.com"]
[Date "2023.05.21"]
[Round "-"]
[White "Biranidun"]
[Black "OceanFloater"]
[Result "1-0"]
[WhiteElo "2506"]
[BlackElo "1019"]
[TimeControl "300"]
[EndTime "19:59:59 PDT"]
[Termination "Biranidun won by resignation"]

1. e4 {[%clk 0:04:59]} 1... d5 {[%clk 0:04:56.3]} 2. exd5 {[%clk 0:04:57.8]}
2... c6 {[%clk 0:04:55.4]} 3. dxc6 {[%clk 0:04:56.7]} 3... Nxc6 {[%clk
0:04:53.9]} 4. Nf3 {[%clk 0:04:55.9]} 4... Nf6 {[%clk 0:04:50.1]} 5. d4 {[%clk
0:04:54.9]} 5... e5 {[%clk 0:04:48.4]} 6. dxe5 {[%clk 0:04:53.8]} 6... Qxd1+
{[%clk 0:04:46.7]} 7. Kxd1 {[%clk 0:04:53.7]} 7... Nxe5 {[%clk 0:04:45.7]} 8.
Nxe5 {[%clk 0:04:53]} 8... Ne4 {[%clk 0:04:42.1]} 9. Be3 {[%clk 0:04:51.3]} 9...
Bd6 {[%clk 0:04:32.1]} 10. Bb5+ {[%clk 0:04:50.7]} 10... Ke7 {[%clk 0:04:25.1]}
11. Nf3 {[%clk 0:04:47.6]} 1-0

[Event "Live Chess"]
[Site "Chess.com"]
[Date "2023.05.21"]
[Round "-"]
[White "chessfiction"]
[Black "grillage"]
[Result "1-0"]
[WhiteElo "2343"]
[BlackElo "1808"]
[TimeControl "300"]
[EndTime "20:01:03 PDT"]
[Termination "chessfiction won by resignation"]

1. e4 {[%clk 0:04:58.6]} 1... d5 {[%clk 0:04:58.4]} 2. d4 {[%clk 0:04:58.5]}
2... dxe4 {[%clk 0:04:56.4]} 3. f3 {[%clk 0:04:58.4]} 3... e5 {[%clk 0:04:50.9]}
4. Bc4 {[%clk 0:04:57.2]} 4... Qxd4 {[%clk 0:04:41.8]} 5. Qe2 {[%clk 0:04:54.1]}
5... Nf6 {[%clk 0:04:21.4]} 6. Nc3 {[%clk 0:04:47.8]} 6... Bb4 {[%clk
0:04:18.7]} 7. Bd2 {[%clk 0:04:45.9]} 7... e3 {[%clk 0:04:11.5]} 8. Qxe3 {[%clk
0:04:39]} 8... Qxe3+ {[%clk 0:04:09.8]} 9. Bxe3 {[%clk 0:04:37.6]} 9... Bxc3+
{[%clk 0:04:08.9]} 10. bxc3 {[%clk 0:04:36.2]} 10... O-O {[%clk 0:04:07]} 11.
Ne2 {[%clk 0:04:34.4]} 11... Bf5 {[%clk 0:04:03.5]} 12. O-O-O {[%clk 0:04:32.6]}
12... Nc6 {[%clk 0:04:00.4]} 13. g4 {[%clk 0:04:31.6]} 13... Bg6 {[%clk
0:03:45.7]} 14. h4 {[%clk 0:04:29.7]} 14... h5 {[%clk 0:03:43.7]} 15. Rdg1
{[%clk 0:04:25.4]} 15... Na5 {[%clk 0:03:33.4]} 16. Bd3 {[%clk 0:04:20.2]} 16...
Bxd3 {[%clk 0:03:31.1]} 17. cxd3 {[%clk 0:04:20.1]} 17... Rfd8 {[%clk
0:03:26.1]} 18. Kc2 {[%clk 0:04:18.2]} 18... Rd7 {[%clk 0:03:20.8]} 19. gxh5
{[%clk 0:04:05.5]} 19... Nxh5 {[%clk 0:03:17.8]} 20. Rg5 {[%clk 0:04:04.5]}
20... g6 {[%clk 0:03:09.2]} 21. Rhg1 {[%clk 0:04:03.2]} 21... Nf6 {[%clk
0:03:08.1]} 22. Rxe5 {[%clk 0:04:01.3]} 22... Nc6 {[%clk 0:03:04.9]} 23. Reg5
{[%clk 0:04:00.2]} 23... Rad8 {[%clk 0:02:58.4]} 24. d4 {[%clk 0:03:56]} 24...
Kh7 {[%clk 0:02:53.3]} 25. Nf4 {[%clk 0:03:50.5]} 25... Re8 {[%clk 0:02:37.8]}
26. Bd2 {[%clk 0:03:43.2]} 26... Rde7 {[%clk 0:02:26.1]} 27. h5 {[%clk
0:03:41.6]} 27... Rg8 {[%clk 0:02:03.1]} 28. hxg6+ {[%clk 0:03:39.7]} 28... Kg7
{[%clk 0:01:41.1]} 29. gxf7+ {[%clk 0:03:35.2]} 29... Kxf7 {[%clk 0:01:40.3]}
30. Rxg8 {[%clk 0:03:32.5]} 30... Nxg8 {[%clk 0:01:39.3]} 31. Nd3 {[%clk
0:03:15.6]} 31... Re2 {[%clk 0:01:32]} 32. Kd1 {[%clk 0:03:14]} 32... Rh2 {[%clk
0:01:30.2]} 33. d5 {[%clk 0:03:11.9]} 33... Nce7 {[%clk 0:01:28.2]} 34. Ne5+
{[%clk 0:03:09.9]} 34... Kf6 {[%clk 0:01:23.7]} 35. Ng4+ {[%clk 0:03:09]} 1-0

[Event "Live Chess"]
[Site "Chess.com"]
[Date "2023.05.21"]
[Round "-"]
[White "ExIsambard"]
[Black "BostonStrangler"]
[Result "0-1"]
[WhiteElo "1918"]
[BlackElo "2055"]
[TimeControl "300"]
[EndTime "20:01:06 PDT"]
[Termination "BostonStrangler won by resignation"]

1. d4 {[%clk 0:04:56.9]} 1... Nf6 {[%clk 0:04:58.2]} 2. Nf3 {[%clk 0:04:54.8]}
2... g6 {[%clk 0:04:55.6]} 3. Bg5 {[%clk 0:04:54.7]} 3... Bg7 {[%clk 0:04:54.1]}
4. e3 {[%clk 0:04:54]} 4... d6 {[%clk 0:04:53.2]} 5. Bd3 {[%clk 0:04:53.3]} 5...
O-O {[%clk 0:04:52.4]} 6. Nbd2 {[%clk 0:04:52.8]} 6... Nc6 {[%clk 0:04:46.9]} 7.
c3 {[%clk 0:04:51.2]} 7... h6 {[%clk 0:04:45.6]} 8. Bh4 {[%clk 0:04:48.9]} 8...
e5 {[%clk 0:04:44.8]} 9. dxe5 {[%clk 0:04:47.5]} 9... Nxe5 {[%clk 0:04:42.4]}
10. Nxe5 {[%clk 0:04:42.1]} 10... dxe5 {[%clk 0:04:41.5]} 11. Ne4 {[%clk
0:04:40.2]} 11... g5 {[%clk 0:04:39.5]} 12. Nxf6+ {[%clk 0:04:37.8]} 12... Qxf6
{[%clk 0:04:34]} 13. Bg3 {[%clk 0:04:35.1]} 13... Qb6 {[%clk 0:04:32.5]} 14. Qc2
{[%clk 0:04:33.6]} 14... f5 {[%clk 0:04:29]} 15. O-O-O {[%clk 0:03:26.7]} 15...
Be6 {[%clk 0:04:18.8]} 16. Kb1 {[%clk 0:03:22.1]} 16... f4 {[%clk 0:04:11.6]}
17. Bh7+ {[%clk 0:03:15.3]} 17... Kh8 {[%clk 0:04:10]} 18. h4 {[%clk 0:03:04.4]}
18... g4 {[%clk 0:03:58.8]} 19. exf4 {[%clk 0:02:58.4]} 19... exf4 {[%clk
0:03:57]} 20. Bh2 {[%clk 0:02:54.8]} 20... Qa5 {[%clk 0:03:15.6]} 21. a3 {[%clk
0:02:46.3]} 21... Qb6 {[%clk 0:03:08.2]} 22. f3 {[%clk 0:02:36.6]} 22... Bb3
{[%clk 0:03:00.3]} 23. Qd3 {[%clk 0:02:18.3]} 23... Rad8 {[%clk 0:02:53.5]} 24.
Qxd8 {[%clk 0:02:11.5]} 24... Rxd8 {[%clk 0:02:52.2]} 25. Rxd8+ {[%clk
0:02:10.4]} 25... Kxh7 {[%clk 0:02:51.7]} 26. Bxf4 {[%clk 0:02:09.3]} 26... Qg6+
{[%clk 0:02:45.6]} 27. Ka1 {[%clk 0:02:06.9]} 27... Qc2 {[%clk 0:02:28.5]} 28.
Rd7 {[%clk 0:01:59.3]} 28... Qxg2 {[%clk 0:02:19.3]} 29. Rc1 {[%clk 0:01:53.6]}
29... Qe2 {[%clk 0:01:37.2]} 30. fxg4 {[%clk 0:01:46.9]} 30... Qxg4 {[%clk
0:01:29.6]} 31. Bxc7 {[%clk 0:01:40.9]} 31... Qxd7 {[%clk 0:01:27.7]} 0-1